[Event "Titled Tuesday Blitz August 08 Late 2023"]
[White "Rabiega, Robert"]
[Black "Adan Bermudez, Sergio"]
[WhiteFideId "4601475"]
[BlackFideId "2292726"]
[WhiteElo "2380"]
[BlackElo "2552"]
[Result "0-1"]
[Round "9"]
[TimeControl "180+1"]
[Date "2023.08.08"]
[WhiteClock "0:00:55"]
[BlackClock "0:00:15"]
[Board "78"]

1. e4 {[%clk 0:02:57]}  d6 {[%clk 0:00:59]} 2. d4 {[%clk 0:02:57]}  Nf6 {[%clk 0:00:59]} 3. Nc3 {[%clk 0:02:57]}  e5 {[%clk 0:01:00]} 4. Nf3 {[%clk 0:02:54]}  Nbd7 {[%clk 0:01:00]} 5. Bc4 {[%clk 0:02:52]}  h6 {[%clk 0:01:00]} 6. a4 {[%clk 0:02:52]}  a5 {[%clk 0:01:00]} 7. O-O {[%clk 0:02:52]}  Be7 {[%clk 0:01:01]} 8. Re1 {[%clk 0:02:52]}  c6 {[%clk 0:01:01]} 9. Bf1 {[%clk 0:02:52]}  Qc7 {[%clk 0:01:02]} 10. Qe2 {[%clk 0:02:49]}  Nf8 {[%clk 0:01:02]} 11. h3 {[%clk 0:02:49]}  g5 {[%clk 0:01:02]} 12. dxe5 {[%clk 0:02:42]}  dxe5 {[%clk 0:01:01]} 13. Nh2 {[%clk 0:02:42]}  Ng6 {[%clk 0:01:01]} 14. g3 {[%clk 0:02:40]}  Bc5 {[%clk 0:00:52]} 15. Be3 {[%clk 0:02:40]}  Qb6 {[%clk 0:00:40]} 16. Bxc5 {[%clk 0:02:30]}  Qxc5 {[%clk 0:00:41]} 17. Kg2 {[%clk 0:02:31]}  h5 {[%clk 0:00:39]} 18. Qc4 {[%clk 0:02:30]}  Qxc4 {[%clk 0:00:36]} 19. Bxc4 {[%clk 0:02:30]}  Ke7 {[%clk 0:00:35]} 20. Rad1 {[%clk 0:02:27]}  Bd7 {[%clk 0:00:33]} 21. f3 {[%clk 0:02:25]}  h4 {[%clk 0:00:32]} 22. Ng4 {[%clk 0:02:16]}  Bxg4 {[%clk 0:00:31]} 23. hxg4 {[%clk 0:02:15]}  hxg3 {[%clk 0:00:28]} 24. Kxg3 {[%clk 0:02:03]}  Nf4 {[%clk 0:00:28]} 25. Rh1 {[%clk 0:02:01]}  Rad8 {[%clk 0:00:23]} 26. Ne2 {[%clk 0:01:45]}  Rxh1 {[%clk 0:00:18]} 27. Rxh1 {[%clk 0:01:44]}  Rd2 {[%clk 0:00:18]} 28. Nxf4 {[%clk 0:01:22]}  exf4+ {[%clk 0:00:19]} 29. Kh3 {[%clk 0:01:22]}  Nd7 {[%clk 0:00:19]} 30. Rh2 {[%clk 0:01:14]}  Rd1 {[%clk 0:00:16]} 31. Re2 {[%clk 0:01:07]}  Ne5 {[%clk 0:00:15]} 32. Bb3 {[%clk 0:01:02]}  Nxf3 {[%clk 0:00:15]} 33. Kg2 {[%clk 0:01:03]}  Ne5 {[%clk 0:00:14]} 34. Rf2 {[%clk 0:01:00]}  Nxg4 {[%clk 0:00:14]} 35. Kf3 {[%clk 0:00:59]}  Nxf2 {[%clk 0:00:14]} 36. Kxf2 {[%clk 0:00:59]}  g4 {[%clk 0:00:15]} 37. c3 {[%clk 0:00:55]}  Rd2+ {[%clk 0:00:15]} 0-1


[Site "https://www.chess.com"]

[Event "Titled Tuesday Blitz August 08 Late 2023"]
[White "Berezin, Viktor"]
[Black "Kostiukov, Alexandr"]
[WhiteFideId "14107872"]
[BlackFideId "14108100"]
[WhiteElo "2474"]
[BlackElo "2372"]
[Result "1-0"]
[Round "9"]
[TimeControl "180+1"]
[Date "2023.08.08"]
[WhiteClock "0:00:25"]
[BlackClock "0:00:00"]
[Board "81"]

1. g3 {[%clk 0:03:00]}  g6 {[%clk 0:02:57]} 2. Bg2 {[%clk 0:03:00]}  Bg7 {[%clk 0:02:57]} 3. d3 {[%clk 0:03:00]}  c5 {[%clk 0:02:57]} 4. Nf3 {[%clk 0:03:00]}  Nf6 {[%clk 0:02:58]} 5. O-O {[%clk 0:03:00]}  O-O {[%clk 0:02:58]} 6. e4 {[%clk 0:03:01]}  Nc6 {[%clk 0:02:57]} 7. Nbd2 {[%clk 0:03:01]}  d5 {[%clk 0:02:58]} 8. Re1 {[%clk 0:02:59]}  e5 {[%clk 0:02:56]} 9. c3 {[%clk 0:02:57]}  h6 {[%clk 0:02:55]} 10. Qc2 {[%clk 0:02:58]}  Be6 {[%clk 0:02:55]} 11. a3 {[%clk 0:02:57]}  Qc7 {[%clk 0:02:54]} 12. exd5 {[%clk 0:02:55]}  Nxd5 {[%clk 0:02:54]} 13. Nc4 {[%clk 0:02:55]}  Nb6 {[%clk 0:02:48]} 14. Be3 {[%clk 0:02:40]}  Ne7 {[%clk 0:02:06]} 15. Nxb6 {[%clk 0:02:20]}  axb6 {[%clk 0:02:07]} 16. Rad1 {[%clk 0:01:53]}  Rad8 {[%clk 0:01:58]} 17. Bc1 {[%clk 0:01:52]}  Kh7 {[%clk 0:01:41]} 18. h3 {[%clk 0:01:52]}  Nc6 {[%clk 0:01:31]} 19. Qe2 {[%clk 0:01:51]}  Bb3 {[%clk 0:01:27]} 20. Rd2 {[%clk 0:01:51]}  f5 {[%clk 0:01:18]} 21. h4 {[%clk 0:01:44]}  Rfe8 {[%clk 0:00:57]} 22. Bh3 {[%clk 0:01:44]}  Qf7 {[%clk 0:00:51]} 23. Qf1 {[%clk 0:01:40]}  Qf6 {[%clk 0:00:39]} 24. c4 {[%clk 0:01:04]}  g5 {[%clk 0:00:19]} 25. Bg2 {[%clk 0:00:55]}  g4 {[%clk 0:00:17]} 26. Nh2 {[%clk 0:00:54]}  Nd4 {[%clk 0:00:17]} 27. Bxb7 {[%clk 0:00:50]}  Qf7 {[%clk 0:00:15]} 28. Bg2 {[%clk 0:00:49]}  e4 {[%clk 0:00:14]} 29. dxe4 {[%clk 0:00:47]}  Bxc4 {[%clk 0:00:15]} 30. Rde2 {[%clk 0:00:40]}  Nxe2+ {[%clk 0:00:10]} 31. Rxe2 {[%clk 0:00:41]}  Bxe2 {[%clk 0:00:10]} 32. Qxe2 {[%clk 0:00:42]}  fxe4 {[%clk 0:00:10]} 33. Nxg4 {[%clk 0:00:41]}  Qd5 {[%clk 0:00:08]} 34. Ne3 {[%clk 0:00:37]}  Qe5 {[%clk 0:00:04]} 35. Qg4 {[%clk 0:00:27]}  Bf6 {[%clk 0:00:03]} 36. Kh2 {[%clk 0:00:27]}  Rg8 {[%clk 0:00:03]} 37. Bxe4+ {[%clk 0:00:26]}  Kh8 {[%clk 0:00:03]} 38. Qf3 {[%clk 0:00:26]}  Bg7 {[%clk 0:00:00]} 39. Ng4 {[%clk 0:00:25]} 1-0


[Site "https://www.chess.com"]

[Event "Titled Tuesday Blitz August 08 Late 2023"]
[White "Arnold, Ken"]
[Black "Kukavica, Tony"]
[WhiteFideId "2056836"]
[BlackFideId "2062542"]
[WhiteElo "2462"]
[BlackElo "2343"]
[Result "1/2-1/2"]
[Round "9"]
[TimeControl "180+1"]
[Date "2023.08.08"]
[WhiteClock "0:00:28"]
[BlackClock "0:00:06"]
[Board "82"]

1. d4 {[%clk 0:03:00]}  d5 {[%clk 0:02:58]} 2. Nf3 {[%clk 0:03:00]}  Nf6 {[%clk 0:02:58]} 3. c3 {[%clk 0:03:00]}  e6 {[%clk 0:02:54]} 4. Bf4 {[%clk 0:02:58]}  Bd6 {[%clk 0:02:54]} 5. e3 {[%clk 0:02:57]}  b6 {[%clk 0:02:53]} 6. Bb5+ {[%clk 0:02:54]}  c6 {[%clk 0:02:52]} 7. Bd3 {[%clk 0:02:53]}  Ba6 {[%clk 0:02:50]} 8. O-O {[%clk 0:02:50]}  O-O {[%clk 0:02:46]} 9. Re1 {[%clk 0:02:50]}  Bxd3 {[%clk 0:02:46]} 10. Qxd3 {[%clk 0:02:50]}  Qe7 {[%clk 0:02:22]} 11. Nbd2 {[%clk 0:02:37]}  Nbd7 {[%clk 0:02:19]} 12. Bxd6 {[%clk 0:02:31]}  Qxd6 {[%clk 0:02:18]} 13. Rad1 {[%clk 0:02:30]}  Rfd8 {[%clk 0:02:17]} 14. e4 {[%clk 0:02:27]}  dxe4 {[%clk 0:02:17]} 15. Nxe4 {[%clk 0:02:27]}  Nxe4 {[%clk 0:02:17]} 16. Qxe4 {[%clk 0:02:25]}  Nf6 {[%clk 0:02:17]} 17. Qe2 {[%clk 0:02:21]}  Rac8 {[%clk 0:02:14]} 18. g3 {[%clk 0:02:20]}  h6 {[%clk 0:02:13]} 19. Ne5 {[%clk 0:02:18]}  c5 {[%clk 0:02:05]} 20. dxc5 {[%clk 0:02:15]}  Qxc5 {[%clk 0:02:04]} 21. a3 {[%clk 0:02:06]}  Qc7 {[%clk 0:01:41]} 22. h4 {[%clk 0:02:00]}  h5 {[%clk 0:01:28]} 23. Rd3 {[%clk 0:01:31]}  Rxd3 {[%clk 0:01:26]} 24. Nxd3 {[%clk 0:01:30]}  Rd8 {[%clk 0:01:23]} 25. Nf4 {[%clk 0:01:29]}  g6 {[%clk 0:01:17]} 26. Rd1 {[%clk 0:01:22]}  Rd6 {[%clk 0:01:09]} 27. Rxd6 {[%clk 0:01:11]}  Qxd6 {[%clk 0:01:09]} 28. c4 {[%clk 0:01:09]}  Ng4 {[%clk 0:01:08]} 29. b4 {[%clk 0:01:04]}  Qd4 {[%clk 0:00:58]} 30. Kg2 {[%clk 0:00:52]}  e5 {[%clk 0:00:58]} 31. Nd5 {[%clk 0:00:50]}  e4 {[%clk 0:00:53]} 32. Ne3 {[%clk 0:00:35]}  Ne5 {[%clk 0:00:46]} 33. g4 {[%clk 0:00:30]}  hxg4 {[%clk 0:00:36]} 34. Nxg4 {[%clk 0:00:30]}  Nxg4 {[%clk 0:00:16]} 35. Qxg4 {[%clk 0:00:31]}  Qxc4 {[%clk 0:00:17]} 36. h5 {[%clk 0:00:30]}  Kg7 {[%clk 0:00:13]} 37. hxg6 {[%clk 0:00:30]}  fxg6 {[%clk 0:00:14]} 38. Qf4 {[%clk 0:00:30]}  Qe6 {[%clk 0:00:11]} 39. Qc7+ {[%clk 0:00:29]}  Qf7 {[%clk 0:00:12]} 40. Qe5+ {[%clk 0:00:29]}  Kf8 {[%clk 0:00:09]} 41. Qxe4 {[%clk 0:00:29]}  Kg7 {[%clk 0:00:05]} 42. Qe5+ {[%clk 0:00:29]}  Kf8 {[%clk 0:00:05]} 43. f4 {[%clk 0:00:29]}  Qa2+ {[%clk 0:00:04]} 44. Kg3 {[%clk 0:00:28]}  Qxa3+ {[%clk 0:00:05]} 45. Kg4 {[%clk 0:00:29]}  Qxb4 {[%clk 0:00:05]} 46. Qf6+ {[%clk 0:00:28]}  Ke8 {[%clk 0:00:03]} 47. Qxg6+ {[%clk 0:00:28]}  Ke7 {[%clk 0:00:03]} 48. Qg7+ {[%clk 0:00:28]}  Ke8 {[%clk 0:00:03]} 49. Qxa7 {[%clk 0:00:27]}  Qd6 {[%clk 0:00:03]} 50. Qa8+ {[%clk 0:00:26]}  Kf7 {[%clk 0:00:03]} 51. Qe4 {[%clk 0:00:26]}  Qe6+ {[%clk 0:00:02]} 52. Kf3 {[%clk 0:00:25]}  Qxe4+ {[%clk 0:00:02]} 53. Kxe4 {[%clk 0:00:26]}  Kf6 {[%clk 0:00:03]} 54. Kd4 {[%clk 0:00:26]}  b5 {[%clk 0:00:04]} 55. Kc5 {[%clk 0:00:26]}  Kf5 {[%clk 0:00:05]} 56. Kb4 {[%clk 0:00:27]}  Kxf4 {[%clk 0:00:06]} 57. Kxb5 {[%clk 0:00:28]} 1/2-1/2


[Site "https://www.chess.com"]

[Event "Titled Tuesday Blitz August 08 Late 2023"]
[White "Swicarz, Maciej"]
[Black "Ai, Evan"]
[WhiteFideId "1113585"]
[BlackFideId "2094770"]
[WhiteElo "2436"]
[BlackElo "2337"]
[Result "0-1"]
[Round "9"]
[TimeControl "180+1"]
[Date "2023.08.08"]
[WhiteClock "0:00:12"]
[BlackClock "0:00:04"]
[Board "83"]

1. c4 {[%clk 0:03:00]}  e6 {[%clk 0:02:03]} 2. Nc3 {[%clk 0:02:59]}  d5 {[%clk 0:02:02]} 3. d4 {[%clk 0:02:57]}  Nf6 {[%clk 0:02:02]} 4. Bg5 {[%clk 0:02:56]}  Be7 {[%clk 0:02:02]} 5. e3 {[%clk 0:02:56]}  Nbd7 {[%clk 0:02:01]} 6. cxd5 {[%clk 0:02:54]}  exd5 {[%clk 0:02:00]} 7. Bd3 {[%clk 0:02:55]}  c6 {[%clk 0:02:00]} 8. Nge2 {[%clk 0:02:54]}  h6 {[%clk 0:01:57]} 9. Bh4 {[%clk 0:02:53]}  O-O {[%clk 0:01:48]} 10. O-O {[%clk 0:02:52]}  c5 {[%clk 0:01:47]} 11. dxc5 {[%clk 0:02:49]}  Nxc5 {[%clk 0:01:48]} 12. Bc2 {[%clk 0:02:45]}  Be6 {[%clk 0:01:39]} 13. Rc1 {[%clk 0:02:36]}  Qd7 {[%clk 0:01:31]} 14. Bb1 {[%clk 0:02:32]}  Rfd8 {[%clk 0:01:22]} 15. a3 {[%clk 0:02:17]}  Nfe4 {[%clk 0:01:19]} 16. Bxe7 {[%clk 0:02:15]}  Qxe7 {[%clk 0:01:20]} 17. b4 {[%clk 0:02:12]}  Nxc3 {[%clk 0:01:15]} 18. Nxc3 {[%clk 0:02:09]}  Ne4 {[%clk 0:01:10]} 19. Qd3 {[%clk 0:02:06]}  f5 {[%clk 0:00:55]} 20. Ne2 {[%clk 0:01:58]}  Rac8 {[%clk 0:00:52]} 21. Nf4 {[%clk 0:01:57]}  Bf7 {[%clk 0:00:47]} 22. Ba2 {[%clk 0:01:55]}  Rxc1 {[%clk 0:00:37]} 23. Rxc1 {[%clk 0:01:54]}  Qe5 {[%clk 0:00:37]} 24. Qc2 {[%clk 0:01:38]}  g5 {[%clk 0:00:29]} 25. Ne2 {[%clk 0:01:37]}  Nd6 {[%clk 0:00:24]} 26. Qc3 {[%clk 0:01:29]}  Qxc3 {[%clk 0:00:18]} 27. Rxc3 {[%clk 0:01:30]}  Nb5 {[%clk 0:00:15]} 28. Rd3 {[%clk 0:01:27]}  Kg7 {[%clk 0:00:13]} 29. a4 {[%clk 0:01:14]}  Nc7 {[%clk 0:00:13]} 30. Rc3 {[%clk 0:01:12]}  Ne6 {[%clk 0:00:11]} 31. Nd4 {[%clk 0:01:10]}  Nxd4 {[%clk 0:00:10]} 32. exd4 {[%clk 0:01:10]}  Re8 {[%clk 0:00:10]} 33. Kf1 {[%clk 0:01:10]}  Re7 {[%clk 0:00:10]} 34. Rc8 {[%clk 0:01:07]}  Kf6 {[%clk 0:00:10]} 35. Rd8 {[%clk 0:01:05]}  Rc7 {[%clk 0:00:09]} 36. Bxd5 {[%clk 0:01:03]}  Rc1+ {[%clk 0:00:05]} 37. Ke2 {[%clk 0:01:03]}  Rc2+ {[%clk 0:00:06]} 38. Ke1 {[%clk 0:01:02]}  Bxd5 {[%clk 0:00:06]} 39. Rxd5 {[%clk 0:01:02]}  Rc4 {[%clk 0:00:06]} 40. Rb5 {[%clk 0:01:00]}  b6 {[%clk 0:00:06]} 41. d5 {[%clk 0:00:58]}  Ke5 {[%clk 0:00:06]} 42. a5 {[%clk 0:00:56]}  bxa5 {[%clk 0:00:06]} 43. bxa5 {[%clk 0:00:55]}  a6 {[%clk 0:00:06]} 44. Rb6 {[%clk 0:00:54]}  Kxd5 {[%clk 0:00:06]} 45. Rxh6 {[%clk 0:00:53]}  Rc1+ {[%clk 0:00:06]} 46. Kd2 {[%clk 0:00:52]}  Ra1 {[%clk 0:00:06]} 47. Rxa6 {[%clk 0:00:52]}  Ra2+ {[%clk 0:00:07]} 48. Kc3 {[%clk 0:00:42]}  Rxf2 {[%clk 0:00:07]} 49. Rb6 {[%clk 0:00:42]}  Rxg2 {[%clk 0:00:05]} 50. Rb5+ {[%clk 0:00:41]}  Ke4 {[%clk 0:00:05]} 51. Rb4+ {[%clk 0:00:38]}  Kf3 {[%clk 0:00:05]} 52. Ra4 {[%clk 0:00:39]}  Rxh2 {[%clk 0:00:05]} 53. a6 {[%clk 0:00:39]}  Rh8 {[%clk 0:00:06]} 54. a7 {[%clk 0:00:39]}  Ra8 {[%clk 0:00:06]} 55. Kd2 {[%clk 0:00:40]}  f4 {[%clk 0:00:05]} 56. Ke1 {[%clk 0:00:40]}  g4 {[%clk 0:00:05]} 57. Kf1 {[%clk 0:00:40]}  g3 {[%clk 0:00:05]} 58. Ra3+ {[%clk 0:00:40]}  Kg4 {[%clk 0:00:06]} 59. Ra4 {[%clk 0:00:36]}  Kh3 {[%clk 0:00:05]} 60. Ra3 {[%clk 0:00:34]}  f3 {[%clk 0:00:05]} 61. Rxf3 {[%clk 0:00:33]}  Rxa7 {[%clk 0:00:05]} 62. Rf8 {[%clk 0:00:32]}  Ra1+ {[%clk 0:00:05]} 63. Ke2 {[%clk 0:00:33]}  Kg2 {[%clk 0:00:05]} 64. Rb8 {[%clk 0:00:28]}  Ra7 {[%clk 0:00:06]} 65. Rb2 {[%clk 0:00:21]}  Re7+ {[%clk 0:00:06]} 66. Kd3+ {[%clk 0:00:21]}  Kh1 {[%clk 0:00:06]} 67. Rb8 {[%clk 0:00:18]}  g2 {[%clk 0:00:05]} 68. Rh8+ {[%clk 0:00:18]}  Kg1 {[%clk 0:00:06]} 69. Kd2 {[%clk 0:00:18]}  Re5 {[%clk 0:00:06]} 70. Rh7 {[%clk 0:00:18]}  Kf2 {[%clk 0:00:06]} 71. Rf7+ {[%clk 0:00:18]}  Kg3 {[%clk 0:00:07]} 72. Rg7+ {[%clk 0:00:18]}  Kf3 {[%clk 0:00:08]} 73. Rg8 {[%clk 0:00:19]}  Re4 {[%clk 0:00:03]} 74. Rf8+ {[%clk 0:00:18]}  Rf4 {[%clk 0:00:03]} 75. Rg8 {[%clk 0:00:15]}  Rg4 {[%clk 0:00:04]} 76. Rf8+ {[%clk 0:00:16]}  Kg3 {[%clk 0:00:04]} 77. Ke2 {[%clk 0:00:16]}  g1=Q {[%clk 0:00:04]} 78. Rf3+ {[%clk 0:00:15]}  Kg2 {[%clk 0:00:04]} 79. Re3 {[%clk 0:00:12]}  Qxe3+ {[%clk 0:00:04]} 0-1


[Site "https://www.chess.com"]

[Event "Titled Tuesday Blitz August 08 Late 2023"]
[White "GAO"]
[Black "Eggleston, Thomas A"]
[BlackFideId "412139"]
[WhiteElo "2302"]
[BlackElo "2390"]
[Result "0-1"]
[Round "9"]
[TimeControl "180+1"]
[Date "2023.08.08"]
[WhiteClock "0:00:09"]
[BlackClock "0:00:09"]
[Board "85"]

1. a3 {[%clk 0:01:46]}  e5 {[%clk 0:02:57]} 2. c4 {[%clk 0:01:43]}  f5 {[%clk 0:02:55]} 3. b4 {[%clk 0:01:41]}  a5 {[%clk 0:02:54]} 4. b5 {[%clk 0:01:39]}  Nf6 {[%clk 0:02:49]} 5. Bb2 {[%clk 0:01:39]}  d6 {[%clk 0:02:49]} 6. g3 {[%clk 0:01:38]}  Be7 {[%clk 0:02:44]} 7. Bg2 {[%clk 0:01:39]}  O-O {[%clk 0:02:42]} 8. e3 {[%clk 0:01:37]}  c6 {[%clk 0:02:41]} 9. a4 {[%clk 0:01:36]}  e4 {[%clk 0:02:38]} 10. d4 {[%clk 0:01:34]}  d5 {[%clk 0:02:38]} 11. Ne2 {[%clk 0:01:32]}  dxc4 {[%clk 0:02:30]} 12. Qc2 {[%clk 0:01:24]}  Be6 {[%clk 0:02:27]} 13. Nf4 {[%clk 0:01:24]}  Bf7 {[%clk 0:02:28]} 14. h4 {[%clk 0:01:25]}  Nbd7 {[%clk 0:02:07]} 15. Bf1 {[%clk 0:01:22]}  cxb5 {[%clk 0:01:53]} 16. axb5 {[%clk 0:01:20]}  Rc8 {[%clk 0:01:53]} 17. Ba3 {[%clk 0:01:12]}  Bb4+ {[%clk 0:01:48]} 18. Kd1 {[%clk 0:01:08]}  Qb6 {[%clk 0:01:42]} 19. Nc3 {[%clk 0:00:57]}  Rfd8 {[%clk 0:01:24]} 20. Kc1 {[%clk 0:00:54]}  Bxc3 {[%clk 0:00:58]} 21. Qxc3 {[%clk 0:00:53]}  Qxb5 {[%clk 0:00:59]} 22. Be2 {[%clk 0:00:46]}  b6 {[%clk 0:00:58]} 23. Rb1 {[%clk 0:00:46]}  Qc6 {[%clk 0:00:56]} 24. h5 {[%clk 0:00:29]}  Nd5 {[%clk 0:00:56]} 25. Nxd5 {[%clk 0:00:28]}  Qxd5 {[%clk 0:00:56]} 26. g4 {[%clk 0:00:29]}  f4 {[%clk 0:00:45]} 27. exf4 {[%clk 0:00:28]}  Rc6 {[%clk 0:00:36]} 28. g5 {[%clk 0:00:22]}  Nf8 {[%clk 0:00:35]} 29. g6 {[%clk 0:00:20]}  Be6 {[%clk 0:00:33]} 30. gxh7+ {[%clk 0:00:19]}  Kxh7 {[%clk 0:00:29]} 31. h6 {[%clk 0:00:18]}  g6 {[%clk 0:00:29]} 32. f3 {[%clk 0:00:17]}  Bf5 {[%clk 0:00:28]} 33. Rg1 {[%clk 0:00:15]}  e3 {[%clk 0:00:28]} 34. Rg5 {[%clk 0:00:14]}  Ne6 {[%clk 0:00:22]} 35. Rg1 {[%clk 0:00:07]}  Bxb1 {[%clk 0:00:20]} 36. Kxb1 {[%clk 0:00:08]}  Nxd4 {[%clk 0:00:19]} 37. Bb2 {[%clk 0:00:08]}  Rd7 {[%clk 0:00:17]} 38. f5 {[%clk 0:00:08]}  Rc8 {[%clk 0:00:15]} 39. fxg6+ {[%clk 0:00:08]}  Kxh6 {[%clk 0:00:16]} 40. Rh1+ {[%clk 0:00:06]}  Kxg6 {[%clk 0:00:15]} 41. Rg1+ {[%clk 0:00:06]}  Kf5 {[%clk 0:00:15]} 42. Bf1 {[%clk 0:00:05]}  e2 {[%clk 0:00:15]} 43. Bh3+ {[%clk 0:00:06]}  Kf4 {[%clk 0:00:14]} 44. Bxd7 {[%clk 0:00:06]}  Qxd7 {[%clk 0:00:13]} 45. Bc1+ {[%clk 0:00:06]}  Kf5 {[%clk 0:00:12]} 46. Qe3 {[%clk 0:00:06]}  Re8 {[%clk 0:00:10]} 47. Qg5+ {[%clk 0:00:06]}  Ke6 {[%clk 0:00:11]} 48. Re1 {[%clk 0:00:06]}  Kf7 {[%clk 0:00:10]} 49. Qf4+ {[%clk 0:00:05]}  Kg8 {[%clk 0:00:08]} 50. Rg1+ {[%clk 0:00:06]}  Kh8 {[%clk 0:00:08]} 51. Qh6+ {[%clk 0:00:06]}  Qh7+ {[%clk 0:00:08]} 52. Qxh7+ {[%clk 0:00:05]}  Kxh7 {[%clk 0:00:08]} 53. Bd2 {[%clk 0:00:05]}  Nxf3 {[%clk 0:00:08]} 54. Rh1+ {[%clk 0:00:04]}  Kg6 {[%clk 0:00:08]} 55. Be1 {[%clk 0:00:05]}  Nxe1 {[%clk 0:00:08]} 56. Rxe1 {[%clk 0:00:05]}  b5 {[%clk 0:00:09]} 57. Kc2 {[%clk 0:00:06]}  b4 {[%clk 0:00:09]} 58. Kd2 {[%clk 0:00:07]}  c3+ {[%clk 0:00:09]} 59. Kd3 {[%clk 0:00:07]}  a4 {[%clk 0:00:09]} 60. Rxe2 {[%clk 0:00:08]}  Rxe2 {[%clk 0:00:08]} 61. Kxe2 {[%clk 0:00:09]}  a3 {[%clk 0:00:08]} 62. Kd3 {[%clk 0:00:09]}  a2 {[%clk 0:00:09]} 63. Kc4 {[%clk 0:00:09]}  a1=Q {[%clk 0:00:09]} 64. Kxb4 {[%clk 0:00:10]}  c2 {[%clk 0:00:09]} 65. Kc5 {[%clk 0:00:11]}  c1=Q+ {[%clk 0:00:10]} 66. Kd5 {[%clk 0:00:12]}  Qab2 {[%clk 0:00:09]} 67. Ke4 {[%clk 0:00:09]}  Qe2+ {[%clk 0:00:09]} 0-1


[Site "https://www.chess.com"]

[Event "Titled Tuesday Blitz August 08 Late 2023"]
[White "Womacka, Mathias"]
[Black "Gerbelli Neto, Eduardo"]
[WhiteFideId "4611390"]
[BlackFideId "2103281"]
[WhiteElo "2467"]
[BlackElo "2323"]
[Result "1/2-1/2"]
[Round "9"]
[TimeControl "180+1"]
[Date "2023.08.08"]
[WhiteClock "0:00:06"]
[BlackClock "0:00:21"]
[Board "88"]

1. e4 {[%clk 0:03:00]}  e5 {[%clk 0:02:59]} 2. Nf3 {[%clk 0:02:59]}  Nc6 {[%clk 0:02:59]} 3. Bb5 {[%clk 0:03:00]}  a6 {[%clk 0:02:58]} 4. Bxc6 {[%clk 0:03:00]}  dxc6 {[%clk 0:02:59]} 5. O-O {[%clk 0:03:00]}  Bg4 {[%clk 0:02:59]} 6. h3 {[%clk 0:02:59]}  h5 {[%clk 0:02:59]} 7. d3 {[%clk 0:02:59]}  Qf6 {[%clk 0:03:00]} 8. Nbd2 {[%clk 0:02:59]}  Ne7 {[%clk 0:02:58]} 9. Re1 {[%clk 0:02:58]}  Ng6 {[%clk 0:02:58]} 10. d4 {[%clk 0:02:58]}  Bd6 {[%clk 0:02:46]} 11. hxg4 {[%clk 0:02:57]}  hxg4 {[%clk 0:02:44]} 12. Nh2 {[%clk 0:02:57]}  Rxh2 {[%clk 0:02:42]} 13. Qxg4 {[%clk 0:02:56]}  Qh4 {[%clk 0:02:34]} 14. Qxh4 {[%clk 0:02:54]}  Rxh4 {[%clk 0:02:34]} 15. Nf3 {[%clk 0:02:53]}  Rh5 {[%clk 0:02:34]} 16. Be3 {[%clk 0:02:45]}  O-O-O {[%clk 0:02:33]} 17. g3 {[%clk 0:02:43]}  f6 {[%clk 0:02:28]} 18. Kg2 {[%clk 0:02:42]}  exd4 {[%clk 0:02:03]} 19. Bxd4 {[%clk 0:02:41]}  Ne5 {[%clk 0:02:02]} 20. Nxe5 {[%clk 0:02:31]}  Bxe5 {[%clk 0:02:02]} 21. Bxe5 {[%clk 0:02:31]}  Rxe5 {[%clk 0:02:03]} 22. Re2 {[%clk 0:02:18]}  f5 {[%clk 0:02:00]} 23. Rae1 {[%clk 0:02:17]}  Rde8 {[%clk 0:01:44]} 24. f3 {[%clk 0:01:39]}  g5 {[%clk 0:01:09]} 25. Kf2 {[%clk 0:01:10]}  Rh8 {[%clk 0:01:09]} 26. Kg2 {[%clk 0:01:10]}  Rhe8 {[%clk 0:01:09]} 27. Re3 {[%clk 0:00:38]}  Rc5 {[%clk 0:01:03]} 28. R1e2 {[%clk 0:00:35]}  f4 {[%clk 0:01:03]} 29. Rd3 {[%clk 0:00:28]}  Ra5 {[%clk 0:00:57]} 30. a3 {[%clk 0:00:27]}  Rb5 {[%clk 0:00:55]} 31. b3 {[%clk 0:00:26]}  Ra5 {[%clk 0:00:53]} 32. a4 {[%clk 0:00:25]}  b5 {[%clk 0:00:53]} 33. Rd4 {[%clk 0:00:22]}  bxa4 {[%clk 0:00:48]} 34. Rxa4 {[%clk 0:00:22]}  Ree5 {[%clk 0:00:44]} 35. Rxa5 {[%clk 0:00:19]}  Rxa5 {[%clk 0:00:44]} 36. e5 {[%clk 0:00:19]}  Kd7 {[%clk 0:00:44]} 37. gxf4 {[%clk 0:00:18]}  gxf4 {[%clk 0:00:43]} 38. Kh3 {[%clk 0:00:17]}  Ke6 {[%clk 0:00:37]} 39. Re4 {[%clk 0:00:16]}  Rxe5 {[%clk 0:00:35]} 40. Rxf4 {[%clk 0:00:16]}  Re2 {[%clk 0:00:35]} 41. Rc4 {[%clk 0:00:15]}  Kd5 {[%clk 0:00:30]} 42. Kg4 {[%clk 0:00:14]}  Re1 {[%clk 0:00:29]} 43. f4 {[%clk 0:00:14]}  Rg1+ {[%clk 0:00:30]} 44. Kf5 {[%clk 0:00:14]}  c5 {[%clk 0:00:29]} 45. Kf6 {[%clk 0:00:14]}  Rf1 {[%clk 0:00:27]} 46. f5 {[%clk 0:00:14]}  Rf2 {[%clk 0:00:26]} 47. Kg5 {[%clk 0:00:13]}  c6 {[%clk 0:00:25]} 48. Rf4 {[%clk 0:00:11]}  Rg2+ {[%clk 0:00:25]} 49. Kf6 {[%clk 0:00:11]}  Rxc2 {[%clk 0:00:24]} 50. Ke7 {[%clk 0:00:11]}  Re2+ {[%clk 0:00:24]} 51. Kd7 {[%clk 0:00:10]}  Ke5 {[%clk 0:00:23]} 52. Rf1 {[%clk 0:00:09]}  Kf6 {[%clk 0:00:20]} 53. Kxc6 {[%clk 0:00:09]}  Rb2 {[%clk 0:00:20]} 54. Rf3 {[%clk 0:00:08]}  Rc2 {[%clk 0:00:20]} 55. Kb6 {[%clk 0:00:08]}  c4 {[%clk 0:00:19]} 56. bxc4 {[%clk 0:00:06]}  Rxc4 {[%clk 0:00:20]} 57. Kxa6 {[%clk 0:00:06]}  Rc5 {[%clk 0:00:19]} 58. Kb6 {[%clk 0:00:06]}  Rxf5 {[%clk 0:00:20]} 59. Rxf5+ {[%clk 0:00:06]}  Kxf5 {[%clk 0:00:21]} 1/2-1/2


[Site "https://www.chess.com"]

[Event "Titled Tuesday Blitz August 08 Late 2023"]
[White "Guerrero Vargas, Andres Jesus"]
[Black "Talbi, Chafik"]
[WhiteFideId "3902048"]
[BlackFideId "7903715"]
[WhiteElo "2436"]
[BlackElo "2312"]
[Result "1-0"]
[Round "9"]
[TimeControl "180+1"]
[Date "2023.08.08"]
[WhiteClock "0:02:04"]
[BlackClock "0:02:39"]
[Board "91"]

1. e4 {[%clk 0:03:00]}  c6 {[%clk 0:03:00]} 2. Nc3 {[%clk 0:03:00]}  d5 {[%clk 0:03:01]} 3. Nf3 {[%clk 0:03:00]}  dxe4 {[%clk 0:03:02]} 4. Nxe4 {[%clk 0:03:00]}  Nf6 {[%clk 0:03:03]} 5. Qe2 {[%clk 0:03:00]}  Nxe4 {[%clk 0:02:54]} 6. Qxe4 {[%clk 0:03:00]}  g6 {[%clk 0:02:51]} 7. Bc4 {[%clk 0:02:54]}  Bg7 {[%clk 0:02:50]} 8. h4 {[%clk 0:02:36]}  Nd7 {[%clk 0:02:41]} 9. Bxf7+ {[%clk 0:02:10]}  Kxf7 {[%clk 0:02:39]} 10. Ng5+ {[%clk 0:02:10]}  Kf6 {[%clk 0:02:39]} 11. Qe6# {[%clk 0:02:04]} 1-0


[Site "https://www.chess.com"]